[Event "Israeli Team-ch 2023"]
[Site "Petah Tikva"]
[Date "2023.02.10"]
[Round "7.35"]
[White "Aharon, Ofir"]
[Black "Bitensky, Igor"]
[Result "0-1"]
[ECO "C41"]
[WhiteElo "2256"]
[BlackElo "2370"]
[Annotator "TA"]
[PlyCount "100"]
[EventDate "2023.01.13"]
[EventCountry "ISR"]
[SourceTitle "playchess.com"]
[Source "ChessBase"]
[SourceQuality "1"]
[TimeControl "40/5400+30:1800+30"]

{[%evp 13,100,43,79,0,0,0,0,0,0,0,0,0,0,-1,0,-20,-14,-37,-47,-34,-30,-33,-37,-42,-36,-43,-40,-52,-56,-54,-54,-43,-33,-44,-35,-110,-100,-101,-100,-96,-102,-97,-97,-189,-181,-189,-188,-182,-187,-188,-177,-195,-178,-256,-262,-249,-218,-204,-235,-239,-262,-240,-200,-426,-412,-398,-304,-587,0,-539,-487,-405,-868,-841,-695,-1045,-1001,-4710,-2333,-5202,-5181,-29976,-29977,-29976,-29977,-29976,-29975,-29973,-5081]} 1. e4 {[%emt 0:02:41]} e5 {[%emt 0:00:03]} 2. Nf3 {[%emt 0:00:06]} d6 {[%emt 0:00:32]} 3. d4 {[%emt 0:00:13]} exd4 {[%emt 0:00:03]} 4. Nxd4 {[%emt 0:00:05]} Nf6 {[%emt 0:00:03]} 5. Nc3 {[%emt 0:00:08]} Be7 {[%emt 0:00:03]} 6. Bf4 {[%emt 0:01:32]} O-O {[%emt 0:00:14]} 7. Qd2 {[%emt 0:00:58]} d5 {[%emt 0:03:09] [#]} 8. exd5 {[%emt 0:04:24] C41: Philidor Defence.} (8. Ndb5 $1 $16 {[%cal Rb5c7]} Bb4 9. exd5 (9. Bxc7 Nxe4 10. Bxd8 Nxd2 $11) (9. Nxc7 Ba5 $11) 9... Re8+ 10. Be2) 8... Nxd5 $11 {[%emt 0:02:55]} 9. Nxd5 {[%emt 0:00:42]} Qxd5 {[%emt 0:00:02]} 10. Bd3 {[%emt 0:09:14][%cal Oe1g1] The position is equal.} Bf6 {[%emt 0:06:51] [#]} (10... Qxd4 $2 11. Bxh7+ (11. Bxc7 $2 {perishes.} Qxb2 12. O-O Nc6 $19) 11... Kxh7 12. Qxd4 $18) 11. Nb5 $146 {[%emt 0:03:18][%cal Od3h7] Hoping for Bxh7+!} ({Predecessor:} 11. Ne2 Bf5 12. Bxf5 Qxf5 13. O-O Nc6 14. Ng3 Qg6 15. c3 h5 16. Rfe1 h4 17. Ne4 {0-1 Lehmann,H (2188)-Pirrot,D (2421) BL2-West 0910 2009 (1.7)}) 11... Qe6+ {[%emt 0:05:57]} (11... Bxb2 $2 12. Bxh7+ (12. Nxc7 $2 {loses.} Qxg2 13. Rf1 Bxa1 $19) 12... Kxh7 13. Qxd5 $18) 12. Qe3 {[%emt 0:12:53]} Na6 {[%emt 0:04:34]} 13. O-O {[%emt 0:02:11]} Qxe3 {[%emt 0:04:11]} 14. fxe3 {[%emt 0:00:48]} c6 {[%emt 0:20:55]} 15. Nd6 {[%emt 0:02:32]} Nc5 {[%emt 0:01:36]} 16. Nxc8 {[%emt 0:08:15]} Rfxc8 {[%emt 0:12:29]} 17. Rab1 {[%emt 0:07:29]} Rd8 {[%emt 0:01:02]} 18. Rfd1 {[%emt 0:00:40]} g6 {[%emt 0:07:12]} 19. b3 {[%emt 0:06:35]} Re8 {[%emt 0:07:44]} 20. Kf2 {[%emt 0:03:03]} Rad8 {[%emt 0:00:36]} 21. Kf3 {[%emt 0:03:35]} Rd7 {[%emt 0:01:28]} 22. e4 {[%emt 0:06:39]} Bc3 {[%emt 0:07:37]} 23. Be3 {[%emt 0:03:01]} Bd4 {[%emt 0:00:08]} 24. b4 {[%emt 0:05:54] Black keeps a firm grip on the game.} (24. Bf4 $15) 24... Bxe3 $17 {[%emt 0:03:17]} 25. Kxe3 {[%emt 0:01:07] [#]} Nxe4 {[%emt 0:01:11][%mdl 512] Black is more active.} 26. Bxe4 {[%emt 0:00:07]} Rde7 {[%emt 0:00:02]} 27. Rd4 {[%emt 0:01:06]} f5 {[%emt 0:00:01][%cal Re7e4][%mdl 64] Pin} 28. a4 {[%emt 0:07:22]} Rxe4+ $19 {[%emt 0:00:09]} 29. Rxe4 {[%emt 0:00:07]} Rxe4+ {[%emt 0:00:03][%mdl 4096] Endgame KR-KR} ({Inferior is} 29... fxe4 30. Rd1 $11) 30. Kd3 {[%emt 0:00:13]} Kf7 {[%emt 0:00:41]} 31. a5 {[%emt 0:01:55]} Ke6 {[%emt 0:02:07]} 32. c3 {[%emt 0:02:18]} Kd5 {[%emt 0:04:40]} 33. Rb2 {[%emt 0:01:07]} (33. Rf1 {is a better defense.}) 33... f4 {[%emt 0:01:32]} 34. Rd2 {[%emt 0:01:08]} Re3+ {[%emt 0:00:18]} 35. Kc2+ {[%emt 0:00:01]} Ke6 {[%emt 0:00:07]} 36. Kb3 {[%emt 0:02:29]} g5 {[%emt 0:01:20][%cal Bg6g5,Bg5g4,Bg4f3][%mdl 32]} 37. Rd8 {[%emt 0:00:13]} Kf6 {[%emt 0:02:47]} 38. a6 $2 {[%emt 0:00:05]} (38. Rb8 {was called for.}) 38... bxa6 {[%emt 0:01:51] Strongly threatening ...Re2.} 39. Rf8+ {[%emt 0:01:33]} Kg6 {[%emt 0:00:00] White must now prevent ...Re2.} 40. Rg8+ $2 {[%emt 0:02:07]} (40. Rc8 Kf5 41. Rxc6) 40... Kf6 $2 {[%emt 0:00:00]} (40... Kf5 $19 41. h4 gxh4 42. Rf8+ Ke4) 41. Rc8 $2 {[%emt 0:08:07][%mdl 8192]} (41. Rf8+ $1 $11 {and White stays safe.} Kg7 42. Rc8) 41... g4 {[%emt 0:08:35] And now ...Re2 would win.} 42. Rxc6+ {[%emt 0:00:43]} Re6 {[%emt 0:00:08]} 43. Rc8 {[%emt 0:03:33]} Kf5 {[%emt 0:01:48] Threatens to win with ...f3.} 44. Rc5+ {[%emt 0:04:56]} Ke4 {[%emt 0:05:33] aiming for ...f3.} 45. Rc7 {[%emt 0:00:57]} f3 {[%emt 0:02:39]} 46. gxf3+ {[%emt 0:00:29]} gxf3 {[%emt 0:00:04]} 47. Rxh7 {[%emt 0:03:23]} Rf6 {[%emt 0:00:19] Black mates.} 48. Re7+ {[%emt 0:00:18]} Kd3 {[%emt 0:00:24]} 49. Rd7+ {[%emt 0:03:58]} Ke2 {[%emt 0:00:25]} 50. Re7+ {[%emt 0:00:39]} Kd1 {[%emt 0:00:19] Weighted Error Value: White=0.90/Black=0.14 (very precise)} 0-1

[Event "Israeli Team-ch 2023"]
[Site "Petah Tikva"]
[Date "2023.02.10"]
[Round "7.36"]
[White "Gorodetzky, Matan"]
[Black "Linker, Mikhail"]
[Result "0-1"]
[ECO "B06"]
[WhiteElo "2333"]
[BlackElo "2297"]
[Annotator "TA"]
[PlyCount "78"]
[EventDate "2023.01.13"]
[EventCountry "ISR"]
[SourceTitle "playchess.com"]
[Source "ChessBase"]
[SourceQuality "1"]
[TimeControl "40/5400+30:1800+30"]

{[%evp 9,78,32,51,6,34,22,36,38,31,6,50,40,38,-9,0,-16,-16,-25,-17,-40,-31,-30,-14,-34,-11,-42,-56,-48,-43,-38,-61,-72,-21,-73,-45,-47,-47,-45,0,0,0,-115,-116,-160,-169,-160,-56,-99,-84,-362,-394,-391,-392,-394,-372,-383,-363,-372,-378,-762,-686,-4132,-742,-728,83,-727,-727,-686,-652,-615,-611]} 1. e4 {[%emt 0:00:03]} d6 {[%emt 0:05:50]} 2. d4 {[%emt 0:00:07]} g6 {[%emt 0:00:48]} 3. Nc3 {[%emt 0:00:45]} Bg7 {[%emt 0:00:34]} 4. Nf3 {[%emt 0:00:31]} a6 {[%emt 0:00:33]} 5. a4 {[%emt 0:00:16]} e6 {[%emt 0:02:32]} 6. h4 {[%emt 0:03:56] B06: Modern Defence.} h6 {[%emt 0:04:35] [#]} 7. Bf4 $146 {[%emt 0:01:13]} ({Predecessor:} 7. Be3 b6 8. Be2 Nd7 9. d5 exd5 10. Bd4 Ngf6 11. exd5 Bb7 12. h5 g5 13. Qd2 {1-0 Marholev,D (2225)-Sredojevic,I (2361) Novi Sad Super Master1 op 2016 (3)}) 7... b6 {[%emt 0:03:21]} 8. Qd2 {[%emt 0:01:58] White is slightly better.} Bb7 {[%emt 0:00:17]} 9. Bd3 {[%emt 0:08:09]} Nd7 {[%emt 0:02:31][%cal Bb8d7,Bd7e5,Be5d3][%mdl 32]} 10. Rd1 {[%emt 0:07:09]} Ne7 {[%emt 0:18:37]} 11. Qc1 {[%emt 0:07:54]} (11. O-O $14 {might be stronger.}) 11... Nc6 $11 {[%emt 0:06:17]} 12. d5 {[%emt 0:18:32]} Nce5 {[%emt 0:02:37]} 13. Nxe5 {[%emt 0:04:25]} Nxe5 {[%emt 0:01:14]} 14. Qe3 {[%emt 0:01:59]} Nxd3+ {[%emt 0:06:40]} 15. Qxd3 {[%emt 0:02:25]} Qe7 {[%emt 0:12:06]} 16. Be3 {[%emt 0:04:29]} O-O {[%emt 0:02:37]} 17. h5 {[%emt 0:00:56]} g5 {[%emt 0:00:15]} 18. O-O {[%emt 0:05:01]} Rae8 {[%emt 0:09:33]} 19. Bd4 {[%emt 0:01:44]} e5 {[%emt 0:02:04]} 20. Be3 {[%emt 0:00:02]} Bc8 {[%emt 0:00:15] Repels g4} (20... f5 $1 $17 {[%cal Rf5f4] Strongly threatening ...f4.} 21. exf5 e4) 21. f3 {[%emt 0:03:23]} (21. Ne2 $11 {keeps the balance.}) 21... g4 {[%emt 0:02:59]} 22. fxg4 {[%emt 0:02:06]} Bxg4 {[%emt 0:00:14]} 23. Rde1 {[%emt 0:02:34]} a5 {[%emt 0:02:27]} (23... Qh4 {keeps more tension.} 24. Bd2 f5 25. exf5 Qxh5 26. Ne4 Bxf5 27. Qxa6 Qh4) 24. Bd2 {[%emt 0:05:54]} Qh4 {[%emt 0:00:59] Wards off Qg3} ({Don't do} 24... Bxh5 25. Qh3 Bg6 26. Bxh6 $14) 25. Nb5 {[%emt 0:00:16]} (25. Ne2 $11) 25... Re7 $1 $17 {[%emt 0:01:18]} ({Much less strong is} 25... Bxh5 26. Nxc7 Re7 27. Nb5 $16) 26. b4 {[%emt 0:00:21]} axb4 {[%emt 0:01:21]} ({But not} 26... Bxh5 27. bxa5 bxa5 28. Bxa5 $14) 27. Bxb4 {[%emt 0:00:02]} Bxh5 {[%emt 0:03:21]} (27... f5 $1 $17 {[%cal Rf5f4] And now ...f4 would win.} 28. exf5 Qxh5) 28. Qc4 {[%emt 0:02:45]} Bg6 {[%emt 0:02:00]} 29. Nxc7 $2 {[%emt 0:02:42][%mdl 8192] [#]} (29. a5 $17 bxa5 30. Bxa5) 29... Rc8 $1 $19 {[%emt 0:00:27]} 30. Bxd6 {[%emt 0:03:07]} Rd7 {[%emt 0:00:04][%cal Be7d7,Bd7c7,Bc7c2,Bc2g2,Bg2g4,Bg4h4,Bh4a4][%mdl 32]} 31. Qb4 {[%emt 0:01:57]} Rcxc7 {[%emt 0:03:21]} 32. Bxc7 {[%emt 0:00:03]} Rxc7 {[%emt 0:00:04]} 33. Qxb6 {[%emt 0:05:15]} Rxc2 {[%emt 0:00:29]} 34. Qb3 $2 {[%emt 0:01:52]} (34. d6 Bf8 35. Qb3) 34... Bxe4 {[%emt 0:00:28][%csl Ge4][%cal Rc2g2]} 35. Qh3 {[%emt 0:02:08] [#]} Bxd5 $1 {[%emt 0:00:29]} 36. Qxh4 {[%emt 0:00:24]} Rxg2+ {[%emt 0:00:04]} 37. Kh1 {[%emt 0:00:03] Threatening mate with Qd8+.} Rg4+ {[%emt 0:00:04][%mdl 64] Discovered Attack. Black is clearly winning.} 38. Kh2 {[%emt 0:00:05]} Rxh4+ {[%emt 0:00:03]} 39. Kg3 {[%emt 0:00:04]} Rxa4 {[%emt 0:00:05] Ingenious play by Linker!   Weighted Error Value: White=0.68/Black=0.29 (precise)} 0-1

[Event "Israeli Team-ch 2023"]
[Site "Petah Tikva"]
[Date "2023.05.05"]
[Round "9.2"]
[White "Khmelniker, Ilya"]
[Black "Kantsler, Boris"]
[Result "1-0"]
[ECO "A41"]
[WhiteElo "2476"]
[BlackElo "2407"]
[Annotator "TA"]
[PlyCount "65"]
[EventDate "2023.01.13"]
[EventCountry "ISR"]
[SourceTitle "playchess.com"]
[Source "ChessBase"]
[SourceQuality "1"]
[TimeControl "40/5400+30:1800+30"]

{[%evp 9,65,13,18,21,39,7,20,5,14,0,1,5,14,1,23,-12,16,-18,7,-6,10,-9,0,0,0,14,9,19,22,8,9,11,25,2,17,27,117,89,105,108,93,89,93,0,0,0,0,0,0,0,537,499,735,747,740,727,716,712]} 1. d4 {[%emt 0:01:21]} d6 {[%emt 0:00:12]} 2. c4 {[%emt 0:00:15]} e5 {[%emt 0:00:06]} 3. d5 {[%emt 0:02:51]} Be7 {[%emt 0:01:02]} 4. Nc3 {[%emt 0:05:25]} Bg5 {[%emt 0:01:14]} 5. Bxg5 {[%emt 0:05:34]} Qxg5 {[%emt 0:00:49]} 6. Nf3 {[%emt 0:00:07][%cal Bg1f3,Bf3e1,Be1c2][%mdl 32] A41: 1 d4 d6: Tartakower System and Modern Defence.} Qe7 {[%emt 0:02:56]} 7. g3 {[%emt 0:06:08] [#]} Nf6 $146 {[%emt 0:05:17]} ({Predecessor:} 7... f5 8. Bg2 Nh6 9. Qa4+ Nd7 10. c5 dxc5 11. d6 cxd6 12. Nd5 Qd8 13. Ng5 O-O {0-1 Kostic,B (2165)-Smolovic,M (2298) Belgrade Trophy 30th 2016 (5)}) 8. e4 {[%emt 0:00:19] The position is equal.} O-O {[%emt 0:00:35]} 9. Bg2 {[%emt 0:00:05]} a5 {[%emt 0:00:24]} 10. O-O {[%emt 0:00:34]} Na6 {[%emt 0:00:19]} 11. Ne1 {[%emt 0:01:34]} Nc5 {[%emt 0:02:48]} 12. Nc2 {[%emt 0:19:29]} Bd7 {[%emt 0:14:46]} 13. Ne3 {[%emt 0:02:43]} Rfe8 {[%emt 0:12:10]} 14. Qc2 {[%emt 0:06:03]} Ng4 {[%emt 0:06:19]} 15. Nf5 {[%emt 0:07:12]} Bxf5 {[%emt 0:04:06]} 16. exf5 {[%emt 0:00:07]} Qg5 {[%emt 0:04:30]} 17. h4 {[%emt 0:12:35]} Qh6 {[%emt 0:00:26][%cal Oe5e4]} 18. Rae1 {[%emt 0:08:31]} Re7 {[%emt 0:07:02]} 19. Re2 {[%emt 0:06:41]} Nf6 {[%emt 0:08:05]} 20. b3 {[%emt 0:02:17]} Qh5 {[%emt 0:04:26]} 21. Bh3 {[%emt 0:05:35]} Rae8 {[%emt 0:11:49]} (21... g5 $5 {[%cal Rg5h4]}) 22. f3 {[%emt 0:00:32]} g5 {[%emt 0:03:21] [#]} (22... Kh8 $11) 23. Bg4 $1 {[%emt 0:05:20][%mdl 512]} Nxg4 {[%emt 0:03:41]} (23... Qh6 24. Qc1) 24. fxg4 {[%emt 0:00:01]} Qxg4 {[%emt 0:00:05]} 25. f6 $1 {[%emt 0:00:15]} Rd7 {[%emt 0:00:06] [#]} (25... Qxg3+ $2 26. Rg2 Qxh4 27. fxe7 $18) 26. Ne4 {[%emt 0:01:18]} ({White should try} 26. Qf5 $1 $16 {[%cal Rf5g4]} Qxf5 27. Rxf5) 26... gxh4 $11 {[%emt 0:01:24]} 27. Nxc5 {[%emt 0:00:26]} dxc5 {[%emt 0:00:05]} 28. Qe4 {[%emt 0:00:19] Chess con chili.} Qxe4 {[%emt 0:00:56]} (28... Qxg3+ $2 29. Rg2 $18) 29. Rxe4 {[%emt 0:00:01] Black must now prevent Rf5.} hxg3 $2 {[%emt 0:00:05][%mdl 8192] [#]} (29... h6 $11) 30. Rf5 $1 $18 {[%emt 0:01:17] White is clearly winning.} h6 {[%emt 0:02:00]} (30... Rd6 $142 31. Rh4 Red8) 31. Rg4+ {[%emt 0:00:16]} Kf8 {[%emt 0:02:31]} 32. Rh5 {[%emt 0:00:06]} Rd6 {[%emt 0:00:31]} 33. Rxh6 {[%emt 0:00:06] Weighted Error Value: White=0.13 (very precise) /Black=0.41} (33. Rxg3 $2 {perishes.} Rxf6 34. Re3 e4 $19) 1-0

[Event "Israeli Team-ch 2023"]
[Site "Petah Tikva"]
[Date "2023.05.05"]
[Round "9.3"]
[White "Gruenfeld, Yehuda"]
[Black "Dvoirys, Semen I."]
[Result "0-1"]
[ECO "B97"]
[WhiteElo "2414"]
[BlackElo "2465"]
[Annotator "TA"]
[PlyCount "82"]
[EventDate "2023.01.13"]
[EventCountry "ISR"]
[SourceTitle "playchess.com"]
[Source "ChessBase"]
[SourceQuality "1"]
[TimeControl "40/5400+30:1800+30"]

{[%evp 16,82,29,32,33,17,49,33,43,25,91,95,77,83,95,101,92,110,83,113,78,67,79,97,95,83,78,93,107,0,0,0,0,0,0,0,0,0,0,0,0,-28,-38,-73,-56,-59,-75,-99,-118,-88,-84,-121,-134,-121,-118,-156,-175,-260,-263,-253,-256,-246,-231,-256,-210,-295,-289,-473,-475]} 1. e4 {[%emt 0:00:15]} c5 {[%emt 0:00:05]} 2. Nf3 {[%emt 0:00:05]} d6 {[%emt 0:00:53]} 3. d4 {[%emt 0:00:09]} cxd4 4. Nxd4 {[%emt 0:00:08]} Nf6 {[%emt 0:00:07]} 5. Nc3 {[%emt 0:00:06]} a6 {[%emt 0:00:08]} 6. Bg5 {[%emt 0:00:05]} e6 {[%emt 0:00:08]} 7. f4 {[%emt 0:00:06]} Qb6 {[%emt 0:00:48]} 8. a3 {[%emt 0:00:28]} Nc6 {[%emt 0:00:39]} 9. Nb3 $1 {[%emt 0:01:42]} Be7 {[%emt 0:01:49] B97: Sicilian Najdorf: Poisoned Pawn.} 10. Qf3 {[%emt 1:32:26] [#]} Na5 $146 {[%emt 0:21:02]} ({Predecessor:} 10... Qc7 11. O-O-O O-O 12. g4 b5 13. Bxf6 Bxf6 14. g5 Be7 15. h4 Rb8 16. f5 Ne5 17. Qf2 {1-0 Tsydypov,Z (2545)-Andriasian,Z (2604) PRO League Stage rapid 2019 (5)}) 11. Nxa5 $1 {[%emt 0:00:00]} Qxa5 {[%emt 0:00:04] White is slightly better.} 12. O-O-O {[%emt 0:00:00]} Bd7 {[%emt 0:00:09] [#]} (12... h6 $11 {remains equal.} 13. Bxf6 Bxf6) 13. e5 $1 $16 {[%emt 0:00:00][%mdl 64] Discovered Attack} Bc6 {[%emt 0:00:32]} 14. Qg3 {[%emt 0:00:00]} dxe5 {[%emt 0:00:41]} 15. fxe5 {[%emt 0:00:00]} Nh5 {[%emt 0:20:57]} 16. Qh4 {[%emt 0:00:00][%csl LRe7,LRh5]} Bxg5+ {[%emt 0:00:05]} 17. Qxg5 {[%emt 0:00:00]} g6 {[%emt 0:00:04] Black is weak on the dark squares} 18. Be2 {[%emt 0:00:00]} (18. Bd3 $5) 18... f6 {[%emt 0:04:19]} 19. Qh6 {[%emt 0:00:00]} Qxe5 {[%emt 0:00:07]} 20. Bxh5 {[%emt 0:00:00]} gxh5 {[%emt 0:00:14] [#]} 21. h4 {[%emt 0:00:00] Prevents Qg5+.} Kf7 {[%emt 0:03:03][%cal Be8f7,Bf7g7,Bg7h8][%mdl 32]} 22. Rde1 {[%emt 0:00:00]} ({Only move:} 22. Rhe1 $16 Qg3 23. Ne4 (23. Qxh5+ Qg6 $14) 23... Bxe4 24. Rxe4) 22... Qf5 $11 {[%emt 0:04:00]} 23. Rhf1 {[%emt 0:00:00]} Qg6 {[%emt 0:00:06] The board is on fire.} 24. Qf4 {[%emt 0:00:00]} Rhe8 {[%emt 0:10:15]} 25. Re5 {[%emt 0:00:00]} Kg7 {[%emt 0:01:13]} (25... Qxg2 {is a self mate.} 26. Qxf6+ Kg8 27. Rg5+) 26. Re3 {[%emt 0:00:00] Rg3 is the strong threat.} e5 {[%emt 0:01:26]} (26... Bxg2 $2 27. Rg1 (27. Rg3 Bxf1 28. Ne4 Rf8 $18) 27... Kh8 28. Rg3 $18) 27. Qf2 {[%emt 0:00:00]} Qh6 {[%emt 0:00:34]} (27... Bxg2 $2 28. Rg1 Qh6 29. Rxg2+ Kh8 30. Kb1 $18) 28. Kb1 {[%emt 0:00:00]} Rf8 {[%emt 0:00:55]} 29. Ne2 {[%emt 0:00:00]} Kh8 $36 {[%emt 0:04:26][%cal Oc6g2][%mdl 2048] Black fights for an advantage. Active counter play!} 30. Ng3 {[%emt 0:00:00]} Qg6 {[%emt 0:01:59]} 31. Rg1 {[%emt 0:00:00]} Rad8 {[%emt 0:00:43]} 32. Nf5 {[%emt 0:00:00]} Qg4 {[%emt 0:01:39] Threatens to win with ...Be4.} 33. Ree1 {[%emt 0:00:00]} Be4 {[%emt 0:01:06]} 34. Ne3 {[%emt 0:00:00]} Qe6 {[%emt 0:05:30]} 35. g4 {[%emt 0:00:00]} hxg4 {[%emt 0:00:20]} 36. Rxg4 {[%emt 0:00:00]} (36. Nxg4 {is a better defense.} f5 37. Qg3) 36... f5 $19 {[%emt 0:00:50]} 37. Rg5 {[%emt 0:00:00]} Rc8 {[%emt 0:01:43] ...f4 would be deadly.} 38. Re2 {[%emt 0:00:00]} Rfd8 {[%emt 0:03:00][%cal Bf8d8,Bd8d7,Bd7c7,Bc7c2][%mdl 32] Prevents Nd1. Hoping for ...f4.} 39. Rg1 {[%emt 0:00:00]} Rd7 {[%emt 0:02:01]} 40. Nd1 {[%emt 0:00:00] [#]} (40. Rd1 $142) 40... Rdc7 $1 {[%emt 0:03:28]} 41. Rxe4 {[%emt 0:21:59]} (41. Nc3 Rxc3 42. Rxe4) 41... Rxc2 {[%emt 0:31:41] Weighted Error Value: White=0.20 (precise) /Black=0.08 (flawless)} (41... fxe4 $2 {too greedy.} 42. Nc3 $19) 0-1

[Event "Israeli Team-ch 2023"]
[Site "Petah Tikva"]
[Date "2023.05.05"]
[Round "9.5"]
[White "Kuprijanov, Anatoly"]
[Black "Vydeslaver, Alik"]
[Result "1/2-1/2"]
[ECO "A16"]
[WhiteElo "2270"]
[BlackElo "2385"]
[Annotator "TA"]
[PlyCount "113"]
[EventDate "2023.01.13"]
[EventCountry "ISR"]
[SourceTitle "playchess.com"]
[Source "ChessBase"]
[SourceQuality "1"]
[TimeControl "40/5400+30:1800+30"]

{[%evp 9,113,0,33,7,22,-23,-18,-39,-27,-41,-20,-35,-41,-38,-36,-29,-35,-46,-14,-33,-36,-38,-30,-27,-7,-4,-21,-105,-102,-120,-127,-123,-125,-127,-114,-116,-89,-121,-77,-76,-66,-83,-85,-89,-69,-78,-79,-86,-73,-69,-85,-69,-76,-78,-55,-58,-72,-72,-69,-74,-40,-45,-49,-91,-98,-118,-97,-110,-103,-97,-82,-77,16,16,15,15,12,14,18,24,42,8,8,8,41,0,0,0,0,0,0,0,0,0,8,0,8,8,8,8,480,480,485,8,8,0]} 1. Nf3 {[%emt 0:00:37]} Nf6 {[%emt 0:01:48]} 2. c4 {[%emt 0:00:54]} g6 {[%emt 0:00:48]} 3. Nc3 {[%emt 0:00:05]} d5 {[%emt 0:00:03]} 4. cxd5 {[%emt 0:03:12]} Nxd5 {[%emt 0:00:09]} 5. Qa4+ {[%emt 0:00:08]} Bd7 {[%emt 0:02:04]} 6. Qd4 {[%emt 0:00:54] A16: English Opening: 1...Nf6 with ...d5.} Nf6 {[%emt 0:00:12]} 7. Qh4 {[%emt 0:09:10]} Nc6 {[%emt 0:11:52]} 8. d3 {[%emt 0:18:29]} Bg4 {[%emt 0:11:03]} 9. Bg5 {[%emt 0:03:33]} Bxf3 {[%emt 0:00:57]} 10. gxf3 {[%emt 0:01:15]} Bg7 {[%emt 0:00:34] [#]} 11. Bg2 $146 {[%emt 0:01:41]} ({Predecessor:} 11. Bh6 O-O 12. Bxg7 Kxg7 13. Rc1 Nd4 14. Rg1 c5 15. Qf4 Rc8 16. Qd2 Qd6 17. Rg3 {0-1 Benes,P (2202)-Grandelius,N (2162) Marianske Lazne IM 2007 (3)}) 11... Nd4 {[%emt 0:03:33] Threatens to win with ...Nc2+.} 12. Rc1 {[%emt 0:06:00] Prevents Nc2+} c6 {[%emt 0:01:03]} 13. O-O {[%emt 0:03:24]} h6 {[%emt 0:06:03]} 14. Be3 {[%emt 0:00:08]} Nf5 {[%emt 0:01:09] A dynamic duo of knights.} 15. Qb4 {[%emt 0:00:15]} Nxe3 {[%emt 0:00:46]} 16. fxe3 {[%emt 0:00:04]} Qb6 {[%emt 0:00:53]} 17. Qxb6 {[%emt 0:00:28]} axb6 {[%emt 0:00:01]} 18. f4 {[%emt 0:00:33]} (18. d4 $11) 18... Ng4 $1 $17 {[%emt 0:01:05]} 19. Rf3 {[%emt 0:05:10]} Bxc3 {[%emt 0:00:42]} 20. bxc3 {[%emt 0:00:05]} Rxa2 {[%emt 0:00:04]} 21. Rg3 {[%emt 0:00:59]} Nf6 {[%emt 0:00:32]} 22. Rb1 {[%emt 0:00:09]} Nd7 {[%emt 0:01:37]} (22... Rxe2 23. Rxb6 O-O 24. Rxb7 $15) 23. Kf2 {[%emt 0:04:33]} e6 {[%emt 0:03:22]} 24. h4 {[%emt 0:00:36][%cal Oh4h5]} Ra5 {[%emt 0:04:31]} 25. Bf3 {[%emt 0:02:50]} h5 {[%emt 0:00:05]} 26. e4 {[%emt 0:04:04]} Ke7 {[%emt 0:01:01]} 27. e5 {[%emt 0:02:46]} Rha8 {[%emt 0:00:55]} 28. c4 {[%emt 0:00:18]} Ra1 {[%emt 0:01:31]} 29. Rgg1 {[%emt 0:00:14]} Rxb1 {[%emt 0:00:31]} 30. Rxb1 $15 {[%emt 0:00:01][%mdl 4096] Endgame KRB-KRN} Kd8 {[%emt 0:00:42]} 31. Ke3 {[%emt 0:10:20]} Ra4 {[%emt 0:05:52]} 32. Rb2 {[%emt 0:04:04]} Kc7 {[%emt 0:00:20]} 33. Rb1 {[%emt 0:00:10]} Ra3 {[%emt 0:08:05]} 34. Kd2 {[%emt 0:02:57]} c5 {[%emt 0:06:55]} 35. Ke3 {[%emt 0:04:57]} Ra2 {[%emt 0:00:42]} 36. Be4 {[%emt 0:04:44]} Nb8 {[%emt 0:00:58]} 37. f5 {[%emt 0:04:08][%mdl 64] Deflection} exf5 {[%emt 0:00:18]} (37... gxf5 38. Bf3 $15) 38. Bd5 {[%emt 0:00:01]} Nc6 {[%emt 0:00:05]} 39. Bxf7 {[%emt 0:03:27]} Nxe5 {[%emt 0:00:09]} 40. Bd5 {[%emt 0:00:05] [#]} f4+ {[%emt 0:02:56]} 41. Kxf4 $11 {[%emt 0:30:09]} Rxe2 {[%emt 0:30:26]} 42. Be4 {[%emt 0:00:06]} Nc6 {[%emt 0:04:36]} 43. Bxg6 {[%emt 0:00:18]} Rh2 {[%emt 0:01:42]} 44. Kg5 {[%emt 0:00:00]} Ne5 {[%emt 0:00:00]} 45. Be4 {[%emt 0:00:00] Prevents Rg2+.} Rh3 {[%emt 0:00:00]} 46. Kxh5 {[%emt 0:00:00] And now Kg5 would win.} Nxd3 {[%emt 0:00:00]} 47. Rh1 {[%emt 0:00:00]} (47. Kg5 $5 {[%cal Rb1b3]}) 47... Rxh1 {[%emt 0:00:00]} 48. Bxh1 {[%emt 0:00:00] aiming for Be4. KB-KN} Ne5 {[%emt 0:00:00]} 49. Kg5 {[%emt 0:01:11]} b5 $1 {[%emt 0:00:00]} ({Don't play} 49... Nxc4 50. h5 Ne5 51. Kf5 $16) 50. cxb5 {[%emt 0:00:42]} c4 $1 {[%emt 0:00:00]} 51. Be4 {[%emt 0:01:08] Hoping for Kf5.} c3 {[%emt 0:00:00]} 52. h5 {[%emt 0:04:08]} Kd6 {[%emt 0:00:00]} 53. Kf4 {[%emt 0:01:04][%cal Oh5h6] h6! would be deadly.} (53. Bxb7 {leads to mate.} c2 54. h6 c1=Q+ 55. Kh4 Qxh6+ 56. Kg3 Qg7+ 57. Kf2 Qxb7 58. Kf1 Qxb5+ 59. Kg2 Qe2+ 60. Kg3 Qf3+ 61. Kh2 Ng4+ 62. Kg1 Qf2+ 63. Kh1 Qh2#) 53... Nf7 {[%emt 0:00:00]} 54. Ke3 {[%emt 0:00:38]} (54. Bxb7 c2 55. Kg3 c1=Q 56. Kh2 Qf4+ 57. Kg2 Qd2+ 58. Kg3 Qe3+ 59. Bf3 Ne5 60. Kh4 Qf4+ 61. Kh3 Qxf3+ 62. Kh2 Ng4+ 63. Kg1 Qf2+ 64. Kh1 Qh2#) 54... Ke7 $2 {[%emt 0:00:00][%mdl 8192]} (54... Kc5 $11 {and Black has nothing to worry.}) 55. Bxb7 $18 {[%emt 0:00:32] Black must now prevent Ba6.} Nd6 {[%emt 0:00:00][%cal Oc3c2] [#]} 56. h6 $2 {[%emt 0:00:33]} Kf6 $11 {[%emt 0:00:00]} (56... c2 $5 57. Kd2 $8 Kf6 $11) 57. Kd3 {[%emt 0:00:32] Weighted Error Value: White=0.20 (precise) /Black=0.24 (precise)} 1/2-1/2